Workbook

Sheet FSPL
E2: Path Loss Calculator
E3: Calculates RF Path Loss
B5: http://rfcoordinationnyc.com
B7: Units | N7: Cable Type
B8: feet or meters | C8: select feet of meters in dropdown menu | F8: feet | P8: loss @ 100 feet | R8: loss @ 100 meters | U8: Gain @ Distance & Freq
B9: Frequency | N9: Cable Type | O9: units | P9: 400MHz | Q9: 900MHz | R9: 400MHz | S9: 900MHz | V9: units
C10: variable | D10: units | G10: units | I10: Custom Antennas | N10: none | O10: dBi | P10: 0 | Q10: 0 | R10: =P10*3.28 -> 0 | S10: =Q10*3.28 -> 0 | U10: =(((Q10-P10)/500)*(F11-400)+P10)*(F21/100) -> 0 | V10: dBi
B11: Frequency | C11: f | D11: MHz | E11: frequency of transmitter | F11: 550 | G11: MHz | I11: Custom Antenna A | J11: 3 | K11: dBi | N11: RG-174 | O11: dBi | P11: 19 | Q11: 31 | R11: =P11*3.28 -> 62.32 | S11: =Q11*3.28 -> 101.68 | U11: =(((Q11-P11)/500)*(F11-400)+P11)*(F21/100) -> 5.65 | V11: dBi
B12: Transmitter Power | C12: P | D12: mW | E12: power of transmitter in mW | F12: 20 | G12: mW | I12: Custom Antenna B | J12: 6 | K12: dBi | N12: LMR-195 | O12: dBi | P12: 7.3 | Q12: 11.1 | R12: 23.944 | S12: 36.408 | U12: =(((Q12-P12)/500)*(F11-400)+P12)*(F21/100) -> 2.11 | V12: dBi
B13: Noise Floor | D13: dBm | F13: -90 | G13: dBm | N13: LMR-240 | O13: dBi | P13: 5 | Q13: 7.6 | R13: 16.4 | S13: 24.928 | U13: =(((Q13-P13)/500)*(F11-400)+P13)*(F21/100) -> 1.445 | V13: dBi
B14: TX System | N14: LMR-240-UF | O14: dBi | P14: 6 | Q14: 9.1 | R14: 19.68 | S14: 29.848 | U14: =(((Q14-P14)/500)*(F11-400)+P14)*(F21/100) -> 1.7325 | V14: dBi
B15: Cable Distance Transmit | C15: d | D15: =IF(J15="feet", ("feet"), ("meters")) -> meters | E15: length of transmit cable | F15: 10 | G15: =IF(F8="feet", ("feet"), ("meters")) -> feet | I15: Comments or suggestions are welcome | N15: RG8X | O15: dBi | P15: 6.6 | Q15: 10.7 | R15: 21.648 | S15: 35.096 | U15: =(((Q15-P15)/500)*(F11-400)+P15)*(F21/100) -> 1.9575 | V15: dBi
B16: Cable Type Transmit | D16: n/a | E16: select type of cable | F16: LMR-240-UF | I16: Paul McDermott | N16: Belden 9240 RG58 | O16: dBi | P16: 6.6 | Q16: 10.1 | R16: 21.648 | S16: 33.128 | U16: =(((Q16-P16)/500)*(F11-400)+P16)*(F21/100) -> 1.9125 | V16: dBi
B17: Antenna Type Transmit | D17: dBi | E17: gain referenced to isotropic | F17: LPDA | I17: http://rfcoordinationnyc.com | N17: Belden 8267 RG213 | O17: dBi | P17: 4.1 | Q17: 7.6 | R17: 13.448 | S17: 24.928 | U17: =(((Q17-P17)/500)*(F11-400)+P17)*(F21/100) -> 1.2875 | V17: dBi
B18: Free Space Loss | I18: thunderpaul@me.com | N18: LMR-400-UF | O18: dBi | P18: 3.1 | Q18: 4.7 | R18: 10.168 | S18: 15.416 | U18: =(((Q18-P18)/500)*(F11-400)+P18)*(F21/100) -> 0.895 | V18: dBi
B19: Free Space Distance | C19: d | D19: f | E19: Free Space Loss | F19: 10 | G19: =IF(F8="feet", ("feet"), ("meters")) -> feet | N19: Belden 9913 RG8/U | O19: dBi | P19: 3 | Q19: 4.7 | R19: 9.84 | S19: 15.416 | U19: =(((Q19-P19)/500)*(F11-400)+P19)*(F21/100) -> 0.8775 | V19: dBi
B20: Rx System | N20: Wireman CQ106 | O20: dBi | P20: 3 | Q20: 4.5 | R20: 9.84 | S20: 14.76 | U20: =(((Q20-P20)/500)*(F11-400)+P20)*(F21/100) -> 0.8625 | V20: dBi
B21: Cable Distance Receive | C21: d | D21: f | E21: length of Receiver cable | F21: 25 | G21: =IF(F8="feet", ("feet"), ("meters")) -> feet | N21: Gepco V5010 | O21: dBi | P21: 2.6 | Q21: 4 | R21: 8.528 | S21: 13.12 | U21: =(((Q21-P21)/500)*(F11-400)+P21)*(F21/100) -> 0.755 | V21: dBi
B22: Antenna Type Receive | D22: dBi | E22: gain referenced to isotropic | F22: LPDA | N22: LMR-400 | O22: dBi | P22: 2.5 | Q22: 3.9 | R22: 8.2 | S22: 12.792 | U22: =(((Q22-P22)/500)*(F11-400)+P22)*(F21/100) -> 0.73 | V22: dBi
B23: Cable Type | D23: n/a | E23: select type of cable | F23: LMR-240
B24: line amp Gain | E24: includes amp on active antenna | F24: 0 | G24: dB
B25: attenuation | F25: 0 | G25: dB
B26: BNC Connections | E26: # of BNC connections | F26: 0
B28: Results | N28: Antenna Type
B29: TX System EIRP | E29: Effective Radiated Power at Tx antenna | F29: =F54 -> 18.81729996 | G29: dBm | N29: Antenna Type | O29: variable | P29: units | R29: Unit
B30: Free Space Loss | E30: Loss due to distance between Tx and Rx | F30: =F62 -> -36.92725379 | G30: dBm | N30: Mic or Belt pack | O30: -0.85 | P30: dBi | R30: feet
B31: Rx System Loss | F31: =F89 -> 5.055 | G31: dBm | N31: 1/4 wave whip | O31: -0.85 | P31: dBi | R31: meters
B32: Total Path Loss | F32: =F94 -> -13.05495383 | G32: dBm | N32: 1/2 wave whip | O32: 2.15 | P32: dBi
B33: Signal to Noise Ratio | E33: Difference between signal compared to noise floor | F33: =-(F13-F32) -> 76.94504617 | G33: dB | N33: Dipole | O33: 2.7 | P33: dBi
N34: LPDA | O34: 6.5 | P34: dBi
B35: Tx System | N35: Helical | O35: 14 | P35: dBi
B36: Tx Power | N36: Domed Helical | O36: 8 | P36: dBi
C37: variable | D37: units | E37: Equation | G37: units | N37: Wideband Dipole | O37: 2.15 | P37: dBi
B38: Transmitter Power | C38: P | D38: mW | E38: power of transmitter in mW | F38: =F12 -> 20 | G38: mW | N38: Isotropic | O38: 0 | P38: dBi
B39: EIRP | C39: P | D39: dBm | E39: EIRP(dBm) = 10 ⋅ log10( P(W) / 1W) + 30 | F39: =10*(LOG10(F38/1000))+30 -> 13.01029996 | G39: dBm
B40: ERP | C40: P | D40: dBm | E40: ERP = EIRP(dBm) - 2.15 | F40: =F39-2.15 -> 10.86029996 | G40: dBm | N40: Custom A | O40: =J11 -> 3 | P40: dBi
B41: Tx Cable Loss Calculator (feet) | N41: Custom B | O41: =J12 -> 6 | P41: dBi
C42: variable | D42: units | E42: Equation | G42: units
B43: Frequency | C43: f | D43: MHz | E43: frequency of transmitter | F43: =F11 -> 550 | G43: MHz
B44: Distance | C44: d | D44: =IF(F8="feet", ("f"), ("m")) -> f | E44: length of Tx cable | F44: =F15 -> 10 | G44: =IF(F8="feet", ("feet"), ("meters")) -> feet | N44: Antenna Amp Gain Type | O44: variable | P44: units
B45: Cable Type | D45: n/a | E45: select type of cable | F45: =F16 -> LMR-240-UF | N45: 0 | O45: 0 | P45: dBi
B46: =IF(F8="feet","Loss @ 400MHz per 100 feet","Loss @ 400MHz per 100 meters") -> Loss @ 400MHz per 100 feet | D46: dB | F46: =VLOOKUP(F45,$N$10:$S$22,IF(F8="feet",3,5),FALSE) -> 6 | G46: dB | N46: 3 | O46: 3 | P46: dBi
B47: =IF(F8="feet","Loss @ 900MHz per 100 feet","Loss @ 900MHz per 100 meters") -> Loss @ 900MHz per 100 feet | D47: dB | F47: =VLOOKUP(F45,$N$10:$S$22,IF(F8="feet",4,6),FALSE) -> 9.1 | G47: dB | N47: 6 | O47: 6 | P47: dBi
B48: Cable Loss @ f0 | D48: dB | E48: Cable loss @ f0 | F48: =-(((F47-F46)/500)*(F43-400)+F46)*(F44/100) -> -0.693 | G48: dB | N48: 9 | O48: 9 | P48: dBi
B49: Tx Antenna Gain | N49: 12 | O49: 12 | P49: dBi
C50: variable | D50: units | G50: units | N50: 18 | O50: 18 | P50: dBi
B51: Antenna Type | D51: dBi | E51: gain referenced to isotropic | F51: =F17 -> LPDA | G51: dBi | N51: 24 | O51: 24 | P51: dBi
B52: antenna Gain | F52: =VLOOKUP(F51,$N$30:$P$41,2,FALSE) -> 6.5
B53: Tx Results
B54: Total Tx System Loss | F54: =F39+F48+F52 -> 18.81729996 | G54: dBm | N54: Attenuation | O54: variable | P54: units
N55: 0 | O55: 0 | P55: dB
B56: Free Space Path Loss Calculator (feet) | N56: -3 | O56: -3 | P56: dB
C57: variable | D57: units | E57: Equation | G57: units | N57: -6 | O57: -6 | P57: dB
B58: Frequency | C58: f | D58: MHz | F58: =F11 -> 550 | G58: MHz | N58: -9 | O58: -9 | P58: dB
B59: Distance | C59: d | D59: =IF(F8="feet", ("f"), ("m")) -> f | E59: Free Space Loss | F59: =F19 -> 10 | G59: =J15 -> 0 | N59: -10 | O59: -10 | P59: dB
B60: Speed of Light (Feet) | C60: c | D60: f/s | E60: -37.88 | F60: 983571056.4 | G60: f/s | N60: -20 | O60: -20 | P60: dB
B61: Speed of Light (Meters) | C61: c | D61: m/s | E61: -27.55 | F61: 299792458 | G61: m/s | N61: -30 | O61: -30 | P61: dB
B62: Free Space Path Loss | C62: FSPL | D62: dB | E62: 20log10(d)+20log10(f)+20log10(4π/c) | F62: =-(20*LOG10(F59)+20*LOG10(F58)-IF(F8="feet",37.88,27.55)) -> -36.92725379 | G62: dB
B64: Rx System
B65: Rx Antenna Gain
C66: variable | D66: units | G66: units
B67: Antenna Type | D67: dBi | E67: gain referenced to isotropic antenna | F67: =F22 -> LPDA | G67: dBi
B68: antenna Gain | F68: =VLOOKUP(F67,$N$30:$P$41,2,FALSE) -> 6.5
B69: Rx Amp Gain
C70: variable | D70: units | G70: units
B71: line amp Gain | F71: =F24 -> 0 | G71: dB
B72: attenuators | F72: =F25 -> 0 | G72: dB
B73: couplers | E73: .5 dB for each BNC connection | F73: =F26*-0.5 -> 0 | G73: dB
B74: Rx Cable Loss
C75: variable | D75: units | E75: Equation | G75: units
B76: Frequency | C76: f | D76: MHz | E76: frequency of transmitter | F76: =F11 -> 550 | G76: MHz
B77: Distance | C77: d | D77: =IF(F8="feet", ("f"), ("m")) -> f | E77: length of Rx cable | F77: =F21 -> 25 | G77: =IF(F8="feet", ("feet"), ("meters")) -> feet
B78: Cable Type | D78: n/a | E78: select type of cable | F78: =F23 -> LMR-240
B79: =IF(F8="feet","Loss @ 400MHz per 100 feet","Loss @ 400MHz per 100 meters") -> Loss @ 400MHz per 100 feet | C79: L400 | D79: dB | E79: =IF(F8="feet","loss per 100 feet","loss per 100 meters") -> loss per 100 feet | F79: =VLOOKUP(F78,$N$10:$S$22,IF(F8="feet",3,5),FALSE) -> 5 | G79: dB
B80: =IF(F8="feet","Loss @ 900MHz per 100 feet","Loss @ 900MHz per 100 meters") -> Loss @ 900MHz per 100 feet | C80: L900 | D80: dB | E80: =IF(F8="feet","loss per 100 feet","loss per 100 meters") -> loss per 100 feet | F80: =VLOOKUP(F78,$N$10:$S$22,IF(F8="feet",4,6),FALSE) -> 7.6 | G80: dB
B81: Cable Loss @ f0 | D81: dB | E81: (((Lf2-Lf1)/(f2-f1))*(f0-f1)+Lf1)*(d/100) | F81: =-(((F80-F79)/500)*(F76-400)+F79)*(F77/100) -> -1.445 | G81: dB
B83: Rx RF Distribution Gain
C84: variable | D84: units | G84: units
B85: line amp Gain | C85: gAm | D85: dB | G85: dB
B86: attenuators | C86: gAt | D86: dB | G86: dB
B87: couplers | C87: gC | D87: dB | E87: # of BNC connections * -.5 | F87: =F42*-0.5 -> 0 | G87: dB
B88: Rx Results
B89: Total Tx System Loss | F89: =F68+F71+F72+F73+F81+F85+F86+F87 -> 5.055 | G89: dBm
B93: Total Loss
B94: Total Path Loss | F94: =F54+F62+F89 -> -13.05495383 | G94: dBm

Sheet Antenna Placement
E2: Tx Rx Antenna Placement Calculator | I2: This Calculatr is a brta version. If anyone wants to help with accurate antenna polar patterns send mw an email. | T2: Validation Tables
E3: Calculates 2T3rd Order IMDs Created in Antenna Distribution
B5: http://rfcoordinationnyc.com
L6: Orientation
B7: Parameters | T7: Cable Type
B8: feet or meters | C8: select feet of meters | F8: feet | V8: loss @ 100 feet | X8: loss @ 100 meters
B9: Orientation | C9: Orientation between Antennas | F9: Rx Forward | T9: Cable Type | U9: units | V9: 400MHz | W9: 900MHz | X9: 400MHz | Y9: 900MHz
B10: Transmitter Power | C10: power of transmitter in mW | F10: 50 | G10: mW | T10: none | U10: dBi | V10: 0 | W10: 0 | X10: =V10*3.28 -> 0 | Y10: =W10*3.28 -> 0
B11: Antenna Type Transmit | C11: Transmit Antenna | F11: Isotropic | T11: RG-174 | U11: dBi | V11: 19 | W11: 31 | X11: =V11*3.28 -> 62.32 | Y11: 101.68
B12: Antenna Type Receive | C12: Receive Antenna | F12: Isotropic | T12: LMR-195 | U12: dBi | V12: 7.3 | W12: 11.1 | X12: 23.944 | Y12: 36.408
B13: Free Space Distance | C13: Distance Between Antennas | F13: 3 | G13: =IF(F8="feet", ("feet"), ("meters")) -> feet | T13: LMR-240 | U13: dBi | V13: 5 | W13: 7.6 | X13: 16.4 | Y13: 24.928
B14: TOIP | C14: Third Order intercept point of Antenna Ditribution | F14: 21 | G14: dBm | L14: Distance | T14: LMR-240-UF | U14: dBi | V14: 6 | W14: 9.1 | X14: 19.68 | Y14: 29.848
T15: RG8X | U15: dBi | V15: 6.6 | W15: 10.7 | X15: 21.648 | Y15: 35.096
T16: Belden 9240 RG58 | U16: dBi | V16: 6.6 | W16: 10.1 | X16: 21.648 | Y16: 33.128
B17: Advanced Parameters | T17: Belden 8267 RG213 | U17: dBi | V17: 4.1 | W17: 7.6 | X17: 13.448 | Y17: 24.928
T18: LMR-400-UF | U18: dBi | V18: 3.1 | W18: 4.7 | X18: 10.168 | Y18: 15.416
B19: TX System | T19: Belden 9913 RG8/U | U19: dBi | V19: 3 | W19: 4.7 | X19: 9.84 | Y19: 15.416
C20: variable | D20: units | G20: units | T20: Wireman CQ106 | U20: dBi | V20: 3 | W20: 4.5 | X20: 9.84 | Y20: 14.76
B21: Frequency | C21: f0 | D21: MHz | E21: frequency of transmitter | F21: 470 | G21: MHz | T21: Gepco V5010 | U21: dBi | V21: 2.6 | W21: 4 | X21: 8.528 | Y21: 13.12
B22: Cable Distance Transmit | C22: d | D22: =IF(J43="feet", ("feet"), ("meters")) -> meters | E22: length of transmit cable | F22: 0 | G22: =IF(F8="feet", ("feet"), ("meters")) -> feet | T22: LMR-400 | U22: dBi | V22: 2.5 | W22: 3.9 | X22: 8.2 | Y22: 12.792
B23: Cable Type Transmit | D23: n/a | E23: select type of cable | F23: RG8X
B24: Rx System
B25: Cable Distance Receive | C25: d | D25: f | E25: length of Receiver cable | F25: 0 | G25: =IF(F8="feet", ("feet"), ("meters")) -> feet | I25: Results
B26: Cable Type | D26: n/a | E26: select type of cable | F26: RG8X | I26: Effective Radiated Power at Tx antenna | K26: =F59 -> 16.98970004 | L26: dBm | T26: Unit | V26: Orientation | W26: TX Antenna | X26: Rx Antenna
B27: line amp Gain | E27: includes amp on active antenna | F27: 0 | G27: dB | I27: Loss due to distance between Tx and Rx | K27: =F67 -> -25.10438225 | L27: dBm | T27: feet | V27: Parallel | W27: 90 Gain | X27: 90 Gain
B28: Attenuation | E28: Additional Attenuation | F28: 0 | G28: dB | I28: EIRP at Tx Antenna | K28: =F92 -> 0 | L28: dBm | T28: meters | V28: Tx Forward | W28: 180 Gain | X28: Forward Gain
B29: Noise Floor | I29: Total RF Gain It Antenna Distribution | K29: =F95 -> -8.11468221 | L29: dBm | V29: Rx Forward | W29: Forward Gain | X29: 180 Gain
B30: Noise Floor | F30: -100 | I30: 2T3O IMD Generated in Distribution | K30: =F101 -> -66.34404663 | L30: dBm
I31: 2T3O IMD relation to Noise Floor | K31: =F103 -> 33.65595337 | L31: dBm
T32: Antenna Type
I33: Custom Antennas | T33: Antenna Type | U33: Forward Gain | V33: 180º Gain | W33: 90º Gain
J34: Forward G | K34: 180º Gain | L34: 90º Gain | T34: Mic or Belt pack | U34: -0.85 | V34: -0.85 | W34: -0.85
I35: Custom Antenna A | J35: 9 | K35: 3 | L35: 3 | T35: 1/4 wave whip | U35: -0.85 | V35: -0.85 | W35: -0.85
I36: Custom Antenna B | J36: 6 | K36: 6 | L36: 3 | T36: 1/2 wave whip | U36: 2.15 | V36: 2.15 | W36: 2.15
B37: Use For Calculation For Reference Only Do not edit | T37: Dipole | U37: 2.7 | V37: 2.7 | W37: 2.7
T38: LPDA | U38: 6.5 | V38: -6.5 | W38: 0
T39: Helical | U39: 14 | V39: -16 | W39: -26
B40: Tx System | T40: Domed Helical | U40: 10 | V40: -4 | W40: -8
B41: Tx Power | T41: Wideband Dipole | U41: 2.15 | V41: 2.15 | W41: 2.15
C42: variable | D42: units | E42: Equation | G42: units | T42: Isotropic | U42: 0 | V42: 0 | W42: 0
B43: Transmitter Power | C43: P | D43: mW | E43: power of transmitter in mW | F43: =F10 -> 50 | G43: mW | I43: Comments or suggestions are welcome
B44: EIRP | C44: P | D44: dBm | E44: EIRP(dBm) = 10 ⋅ log10( P(W) / 1W) + 30 | F44: =10*(LOG10(F43/1000))+30 -> 16.98970004 | G44: dBm | I44: Paul McDermott | T44: Custom A | U44: =J35 -> 9 | V44: 3 | W44: 3
B45: Tx Cable Loss Calculator (feet) | I45: http://rfcoordinationnyc.com | T45: Custom B | U45: 6 | V45: 6 | W45: 3
C46: variable | D46: units | E46: Equation | G46: units | I46: thunderpaul@me.com
B47: Frequency | C47: f0 | D47: MHz | E47: frequency of transmitter | F47: =F21 -> 470 | G47: MHz
B48: Distance | C48: d | D48: =IF(F8="feet", ("f"), ("m")) -> f | E48: length of Tx cable | F48: =F22 -> 0 | G48: =IF(F8="feet", ("feet"), ("meters")) -> feet | T48: Ant Amp Gain | U48: variable | V48: units | X48: numbers
B49: Cable Type | D49: n/a | E49: select type of cable | F49: =F23 -> RG8X | T49: 0 | U49: 0 | V49: dBi | X49: #
B50: =IF(F8="feet","Loss @ 400MHz per 100 feet","Loss @ 400MHz per 100 meters") -> Loss @ 400MHz per 100 feet | D50: dB | F50: =VLOOKUP(F49,$T$10:$Y$22,IF(F8="feet",3,5),FALSE) -> 6.6 | G50: dB | T50: 3 | U50: 3 | V50: dBi | X50: 0
B51: =IF(F8="feet","Loss @ 900MHz per 100 feet","Loss @ 900MHz per 100 meters") -> Loss @ 900MHz per 100 feet | D51: dB | F51: =VLOOKUP(F49,$T$10:$Y$22,IF(F8="feet",4,6),FALSE) -> 10.7 | G51: dB | T51: 6 | U51: 6 | V51: dBi | X51: 1
B52: Cable Loss @ f0 | D52: dB | E52: Cable loss @ f0 | F52: =-(((F51-F50)/500)*(F47-400)+F50)*(F48/100) -> 0 | G52: dB | T52: 9 | U52: 9 | V52: dBi | X52: 2
B53: Tx Antenna Gain | T53: 12 | U53: 12 | V53: dBi | X53: 3
C54: variable | D54: units | G54: units | T54: 18 | U54: 18 | V54: dBi | X54: 4
B55: Antenna Type | D55: dBi | E55: gain referenced to isotropic | F55: =F11 -> Isotropic | G55: dBi | T55: 24 | U55: 24 | V55: dBi | X55: 5
B56: Antenna Orientation | F56: =VLOOKUP(F9,$V$27:$X$29,2,FALSE) -> Forward Gain | X56: 6
B57: antenna Gain | F57: =VLOOKUP(F55,$T$34:$W$45,IF(F56="Forward Gain",2,IF(F56="180 Gain",3,4)),FALSE) -> 0 | X57: 7
B58: Tx Results | T58: Attenuation | X58: 8
B59: Total Tx System Loss | E59: TX System EIRP | F59: =F44+F52+F57 -> 16.98970004 | G59: dBm | T59: Attenuation | U59: variable | V59: units | X59: 9
T60: 0 | U60: 0 | V60: dB | X60: 10
B61: Free Space Path Loss Calculator (feet) | T61: -3 | U61: -3 | V61: dB | X61: 11
C62: variable | D62: units | E62: Equation | G62: units | T62: -6 | U62: -6 | V62: dB | X62: 12
B63: Frequency | C63: f0 | D63: MHz | F63: =F21 -> 470 | G63: MHz | T63: -9 | U63: -9 | V63: dB | X63: 13
B64: Distance | C64: d | D64: =IF(F8="feet", ("f"), ("m")) -> f | E64: Free Space Loss | F64: =F13 -> 3 | G64: =J43 -> 0 | T64: -10 | U64: -10 | V64: dB | X64: 14
B65: Speed of Light (Feet) | C65: c | D65: f/s | E65: -37.88 | F65: 983571056.4 | G65: f/s | T65: -20 | U65: -20 | V65: dB | X65: 15
B66: Speed of Light (Meters) | C66: c | D66: m/s | E66: -27.55 | F66: 299792458 | G66: m/s | T66: -30 | U66: -30 | V66: dB | X66: 16
B67: dB Above Noise Floor | C67: FSPL | D67: dB | E67: 20log10(d)+20log10(f)+20log10(4π/c) | F67: =-(20*LOG10(F64)+20*LOG10(F63)-IF(F8="feet",37.88,27.55)) -> -25.10438225 | G67: dB
B69: Rx System
B70: Rx Antenna Gain
C71: variable | D71: units | G71: units | T71: Chart Data
B72: Antenna Type | D72: dBi | E72: gain referenced to isotropic antenna | F72: =F12 -> Isotropic | G72: dBi | U72: dBm | V72: MHz | W72: MHz
B73: Antenna Orientation | F73: =VLOOKUP(F9,$V$27:$X$29,3,FALSE) -> 180 Gain | T73: 1st Tone | U73: -120 | V73: =K29 -> -8.11468221 | W73: =F21 -> 470
B74: antenna Gain | F74: =VLOOKUP(F72,$T$34:$W$45,IF(F73="Forward Gain",2,IF(F73="180 Gain",3,4)),FALSE) -> 0 | T74: 1st Tone | U74: -120 | V74: -120 | W74: =F21 -> 470
B75: Rx Amp Gain | T75: 2nd Tone | U75: -120 | V75: =K29 -> -8.11468221 | W75: =F21+1 -> 471
C76: variable | D76: units | G76: units | T76: 2nd Tone | U76: -120 | V76: -120 | W76: =F21+1 -> 471
B77: line amp Gain | F77: =F27 -> 0 | G77: dB | T77: Lower 2T3O IMD | V77: =K30 -> -66.34404663 | W77: =W73-1 -> 469
B78: attenuators | F78: =F28 -> 0 | G78: dB | T78: Lower 2T3O IMD | V78: -120 | W78: =W73-1 -> 469
B79: Rx Cable Loss | T79: Upper 2T3O IMD | V79: =K30 -> -66.34404663 | W79: =W75+1 -> 472
C80: variable | D80: units | E80: Equation | G80: units | T80: Upper 2T3O IMD | V80: -120 | W80: =W75+1 -> 472
B81: Frequency | C81: f0 | D81: MHz | E81: frequency of transmitter | F81: =F21 -> 470 | G81: MHz
B82: Distance | C82: d | D82: =IF(F8="feet", ("f"), ("m")) -> f | E82: length of Rx cable | F82: =F25 -> 0 | G82: =IF(F8="feet", ("feet"), ("meters")) -> feet
B83: Cable Type | D83: n/a | E83: select type of cable | F83: =F26 -> RG8X
B84: =IF(F8="feet","Loss @ 400MHz per 100 feet","Loss @ 400MHz per 100 meters") -> Loss @ 400MHz per 100 feet | C84: L400 | D84: dB | E84: =IF(F8="feet","loss per 100 feet","loss per 100 meters") -> loss per 100 feet | F84: =VLOOKUP(F83,$T$10:$Y$22,IF(F8="feet",3,5),FALSE) -> 6.6 | G84: dB
B85: =IF(F8="feet","Loss @ 900MHz per 100 feet","Loss @ 900MHz per 100 meters") -> Loss @ 900MHz per 100 feet | C85: L900 | D85: dB | E85: =IF(F8="feet","loss per 100 feet","loss per 100 meters") -> loss per 100 feet | F85: =VLOOKUP(F83,$T$10:$Y$22,IF(F8="feet",4,6),FALSE) -> 10.7 | G85: dB
B86: Cable Loss @ f0 | D86: dB | E86: (((Lf2-Lf1)/(f2-f1))*(f0-f1)+Lf1)*(d/100) | F86: =-(((F85-F84)/500)*(F81-400)+F84)*(F82/100) -> 0 | G86: dB
B87: Rx RF Distribution Gain
C88: variable | D88: units | G88: units
B89: line amp Gain | C89: gAm | D89: dB | F89: =F27 -> 0 | G89: dB
B90: attenuators | C90: gAt | D90: dB | F90: =F28 -> 0 | G90: dB
B91: Rx Results
B92: Total Tx System Loss | F92: =F74+F77+F78+F86+F89+F90 -> 0 | G92: dBm
B94: Total Loss
B95: Total Path Loss | F95: =F59+F67+F92 -> -8.11468221 | G95: dBm
B97: 3OIP Calculation
B98: Rx Antenna Gain
B99: Total Path Loss | F99: =F95 -> -8.11468221
B100: TOIP | F100: =F14 -> 21
B101: 2T3O IMD | F101: =F100+((F99-F100)*3) -> -66.34404663
B102: Noise Floor | E102: noise floor | F102: =F30 -> -100
B103: dB Above Noise Floor | E103: above noise floor | F103: =F101-F102 -> 33.65595337

Sheet 3OIP Calc
C2: Third Order Intercept Point Calculator
C3: Three little calculators for 3OIP
B5: http://rfcoordinationnyc.com
B7: Output Intercept Point Calculator | I7: This calculator can be used for comparison of scenarios in RF setups and educational purposes. In all three calculators the compression point is ignored to simplify the data needed to make the calculation. Therefore calculators are more accurate at lower values.
B8: Calculate Primary Product Power
C9: variable | D9: units | E9: formula | G9: units
B10: OIP3 | C10: i | D10: dBm | F10: 24 | G10: dBm
B11: 3rd odder IMD | C11: IMD3 | D11: dBm | F11: -100 | G11: dBm
B12: 1st product power | C12: P | D12: dBm | E12: P=i+((IMD3-i)/3) | F12: =F10+((F11-F10)/3) -> -17.33333333 | G12: dBm
B13: Calculate 3rd Order IMD
C14: variable | D14: units | E14: formula | G14: units
B15: OIP3 | C15: i | D15: dBm | F15: 24 | G15: dBm
B16: 1st product power | C16: P | D16: dBm | F16: -17 | G16: dBm
B17: 3rd odder IMD | C17: IMD3 | D17: dBm | E17: IMD3=i+((P-i)*3) | F17: =F15+((F16-F15)*3) -> -99 | G17: dBm
B18: Calculate OIP3
C19: variable | D19: units | E19: formula | G19: units
B20: 1st product power | C20: P | D20: dBm | F20: 0 | G20: dBm
B21: 3rd odder IMD | C21: IMD3 | D21: dBm | F21: -20 | G21: dBm
B22: OIP3 | C22: i | D22: dBm | E22: i=(3P - IMD3)/2 | F22: =((3*F20)-F21)/2 -> 10 | G22: dBm
B25: Reference
C26: variable | D26: units | E26: formula | G26: units
B27: OIP3 | C27: i | D27: dBm | F27: 21 | G27: dBm
F28: 30
B29: Calculate 3rd Order IMD
C30: 1st P | D30: units | E30: formula | F30: 2T3O | G30: 2T3O
B31: 1 | C31: 6 | D31: dBm | E31: IMD3=i+((P-i)*3) | F31: =F$27+((C31-F$27)*3) -> -24 | G31: =F$28+((C31-F$28)*3) -> -42
B32: 2 | C32: 3 | D32: dBm | E32: IMD3=i+((P-i)*3) | F32: =F$27+((C32-F$27)*3) -> -33 | G32: =F$28+((C32-F$28)*3) -> -51
B33: 3 | C33: 0 | D33: dBm | E33: IMD3=i+((P-i)*3) | F33: -42 | G33: -60
B34: 4 | C34: -3 | D34: dBm | E34: IMD3=i+((P-i)*3) | F34: -51 | G34: -69
B35: 5 | C35: -6 | D35: dBm | E35: IMD3=i+((P-i)*3) | F35: -60 | G35: -78
B36: 6 | C36: -9 | D36: dBm | E36: IMD3=i+((P-i)*3) | F36: -69 | G36: -87
B37: 7 | C37: -12 | D37: dBm | E37: IMD3=i+((P-i)*3) | F37: -78 | G37: -96
B38: 8 | C38: -15 | D38: dBm | E38: IMD3=i+((P-i)*3) | F38: -87 | G38: -105
B39: 9 | C39: -18 | D39: dBm | E39: IMD3=i+((P-i)*3) | F39: -96 | G39: -114
B40: 10 | C40: -21 | D40: dBm | E40: IMD3=i+((P-i)*3) | F40: -105 | G40: -123
B41: 11 | C41: -24 | D41: dBm | E41: IMD3=i+((P-i)*3) | F41: =F$27+((C41-F$27)*3) -> -114 | G41: =F$28+((C41-F$28)*3) -> -132
B42: 12 | C42: -27 | D42: dBm | E42: IMD3=i+((P-i)*3) | F42: -123 | G42: -141
B43: 13 | C43: -30 | D43: dBm | E43: IMD3=i+((P-i)*3) | F43: -132 | G43: -150
B44: 14 | C44: -33 | D44: dBm | E44: IMD3=i+((P-i)*3) | F44: -141 | G44: -159
B45: 15 | C45: -36 | D45: dBm | E45: IMD3=i+((P-i)*3) | F45: -150 | G45: -168

Sheet Wave Calc
E2: Wavelength Calculators
E3: Electromagnetic and Acoustic Wavelength Calculators
B4: http://rfcoordinationnyc.com
B7: Electromagnetic Wavelength Calculator
B8: feet or meters | C8: select feet of meters in dropdown menu | F8: feet
B9: Enter Variables Here | P9: Unit
C10: variable | D10: units | G10: units | P10: feet
B11: Frequency | C11: f | D11: MHz | F11: 608 | G11: MHz | P11: meters
B12: Distance Between Antennas | C12: D | D12: =IF(F8="feet", ("feet"), ("meters")) -> feet | F12: 100 | G12: =IF(F8="feet", ("feet"), ("meters")) -> feet
B13: Results | P13: Speed of Light | Q13: c | R13: f/s | T13: 983571056.4 | U13: f/s
B14: Wavelength | C14: λ | D14: =IF(F8="feet", ("feet"), ("meters")) -> feet | E14: λ = c/f0 | F14: =IF(F8="Feet",T13/(F11*1000000),T14/(F11*1000000)) -> 1.617715553 | G14: =IF(F8="feet", ("feet"), ("meters")) -> feet | P14: Speed of Light | Q14: c | R14: m/s | T14: 299792548 | U14: m/s
B15: 1/2 Wavelength | C15: λ | D15: =IF(F8="feet", ("feet"), ("meters")) -> feet | F15: =IF(F8="Feet",T13/(F11*1000000),T14/(F11*1000000))/2 -> 0.8088577767 | G15: =IF(F8="feet", ("feet"), ("meters")) -> feet
B16: 1/4 Wavelength | C16: λ | D16: =IF(F8="feet", ("feet"), ("meters")) -> feet | F16: =IF(F8="Feet",T13/(F11*1000000),T14/(F11*1000000))/4 -> 0.4044288883 | G16: =IF(F8="feet", ("feet"), ("meters")) -> feet | P16: Speed of Sound | Q16: c | R16: f/s | T16: 1087 | U16: f/s
B17: 1st Fresnel Radius | C17: r | D17: =IF(F8="feet", ("feet"), ("meters")) -> feet | E17: 1st Fresnel Zone Max Radius | F17: =SQRT(F12/(4*F11))*IF(F8="meters",17.31,IF(F8="feet",31.35)) -> 6.357051941 | G17: =IF(F8="feet", ("feet"), ("meters")) -> feet | P17: Speed of Sound | Q17: c | R17: m/s | T17: 331.3 | U17: m/s
B19: Acoustic Wavelength Calculator
B20: feet or meters | C20: select feet of meters in dropdown menu | F20: feet
B21: Enter Variables Here
C22: variable | D22: units | G22: units
B23: Frequency | C23: f0 | D23: Hz | F23: 100 | G23: Hz
B24: Temperature | C24: t | D24: =IF(F20="feet", ("ºF"), ("ºC")) -> ºF | F24: 72 | G24: =IF(F20="feet", ("ºF"), ("ºC")) -> ºF
B25: Speed of Sound @ 0º C | C25: c | D25: =IF(F20="feet", ("f/s"), ("m/s")) -> f/s | F25: =IF(F20="feet", ("1087"), ("331.3")) -> 1087 | G25: =IF(F20="feet", ("f/s"), ("m/s")) -> f/s
B26: Speed of Sound @ Temp | C26: c | D26: =IF(F20="feet", ("f/s"), ("m/s")) -> f/s | F26: =IF(F20="feet", (F25+(1.08*(F24-32))), (F25+(0.6*F24))) -> 1130.2 | G26: =IF(F20="feet", ("f/s"), ("m/s")) -> f/s
B27: Results
B28: Wavelength | C28: λ | D28: =IF(F20="feet", ("feet"), ("meters")) -> feet | E28: λ = c/f0 | F28: =F26/F23 -> 11.302 | G28: =IF(F20="feet", ("feet"), ("meters")) -> feet
B29: 1/2 Wavelength | C29: λ | D29: =IF(F20="feet", ("feet"), ("meters")) -> feet | F29: =(F26/F23)/2 -> 5.651 | G29: =IF(F20="feet", ("feet"), ("meters")) -> feet
B30: 1/4 Wavelength | C30: λ | D30: =IF(F20="feet", ("feet"), ("meters")) -> feet | F30: =(F26/F23)/4 -> 2.8255 | G30: =IF(F20="feet", ("feet"), ("meters")) -> feet

Sheet VSWR
D2: VSWR Calculator
D3: Calculate reflected power and mismatch loss
B5: http://rfcoordinationnyc.com
B7: VSWR Calculator
B8: VSWR | C8: Reflection Coefficient | D8: Reflected Voltage (%) | E8: Reflected Power (%) | F8: Reflected Power/Return Loss (dB) | G8: Mismatch Loss (dB)
B9: (1+r)/(1-r) | C9: (VSWR - 1)/(VSWR +1) | D9: 100 * Rc | E9: 100 * Rc^2 | F9: 10*LOG(Rc^2) | G9: 10*LOG10(1-Rc^2)
B10: 1.2 | C10: =(B10-1)/(B10+1) -> 0.09090909091 | D10: =100*C10 -> 9.090909091 | E10: =100*C10^2 -> 0.826446281 | F10: =10*LOG(C10^2) -> -20.8278537 | G10: =-10*LOG10(1-C10^2) -> 0.03604124269
B12: VSWR Reference
B13: VSWR | C13: Reflection Coefficient | E13: Reflected Power (%) | F13: Reflected Power (dB) | G13: Mismatch Loss (dB)
B14: 1 | C14: =(B14-1)/(B14+1) -> 0 | D14: =100*C14 -> 0 | E14: =100*C14^2 -> 0 | F14: -Infinity | G14: =-10*LOG10(1-C14^2) -> 0
B15: 1.5 | C15: 0.2 | D15: =100*C15 -> 20 | E15: =100*C15^2 -> 4 | F15: =10*LOG(C15^2) -> -13.97940009 | G15: =-10*LOG10(1-C15^2) -> 0.1772876696
B16: 2 | C16: 0.3333333333 | D16: 33.33333333 | E16: 11.11111111 | F16: -9.542425094 | G16: 0.5115252245
B17: 2.5 | C17: 0.4285714286 | D17: 42.85714286 | E17: 18.36734694 | F17: -7.359535706 | G17: 0.881360887
B18: 3 | C18: 0.5 | D18: 50 | E18: 25 | F18: -6.020599913 | G18: 1.249387366
B19: 3.5 | C19: 0.5555555556 | D19: 55.55555556 | E19: 30.86419753 | F19: -5.105450102 | G19: 1.602969919
B20: 4 | C20: 0.6 | D20: 60 | E20: 36 | F20: -4.436974992 | G20: 1.93820026
B21: 5 | C21: 0.6666666667 | D21: 66.66666667 | E21: 44.44444444 | F21: -3.521825181 | G21: 2.552725051
B22: 6 | C22: 0.7142857143 | D22: 71.42857143 | E22: 51.02040816 | F22: -2.922560714 | G22: 3.099848383
B23: 7 | C23: 0.75 | D23: 75 | E23: 56.25 | F23: -2.498774732 | G23: 3.590219426
B24: 8 | C24: 0.7777777778 | D24: 77.77777778 | E24: 60.49382716 | F24: -2.182889389 | G24: 4.033350406
B25: 9 | C25: 0.8 | D25: 80 | E25: 64 | F25: -1.93820026 | G25: 4.436974992
B26: 10 | C26: 0.8181818182 | D26: 81.81818182 | E26: 66.94214876 | F26: -1.743003514 | G26: 4.80725379
B27: 15 | C27: 0.875 | D27: 87.5 | E27: 76.5625 | F27: -1.15983894 | G27: 6.300887149
B28: 20 | C28: 0.9047619048 | D28: =100*C28 -> 90.47619048 | E28: 81.85941043 | F28: -0.8693138756 | G28: 7.413486025
B29: 50 | C29: 0.9607843137 | D29: 96.07843137 | E29: 92.31064975 | F29: -0.3474819214 | G29: 11.14110357
